bitfinex/quotes_BTCUSD_20250518
["timestamp","ask_amount","ask_price","bid_price","bid_amount"]
[1747586619577,0.26312744,105460.0,105450.0,0.01336836]
[1747586619986,0.27260943,105460.0,105450.0,0.01336836]
[1747586620817,0.27260943,105460.0,105450.0,0.00302992]
[1747586621017,0.26312744,105460.0,105450.0,0.00302992]
[1747586622644,0.26312744,105460.0,105450.0,0.00402992]
[1747586642655,0.57195592,105460.0,105450.0,0.00402992]
[1747586642883,0.66926532,105460.0,105450.0,0.00402992]
[1747586643169,0.86426532,105460.0,105450.0,0.00402992]
[1747586643660,0.87880617,105460.0,105450.0,0.00402992]
[1747586644148,0.87880617,105460.0,105450.0,0.00202992]
[1747586644385,0.87980617,105460.0,105450.0,0.00202992]
[1747586644619,0.88080617,105460.0,105450.0,0.00202992]
[1747586644859,0.87880617,105460.0,105450.0,0.00202992]
[1747586645075,0.88080617,105460.0,105450.0,0.00202992]
[1747586645281,0.88280617,105460.0,105450.0,0.00202992]
[1747586647288,0.37897769,105460.0,105450.0,0.00202992]
[1747586647482,0.51885108,105460.0,105450.0,0.00202992]
[1747586649233,0.36443684,105460.0,105450.0,0.00202992]
[1747586649482,0.51885108,105460.0,105450.0,0.00202992]
[1747586657951,0.36443684,105460.0,105450.0,0.00202992]
[1747586658253,0.51885108,105460.0,105450.0,0.00202992]
[1747586658863,0.30043684,105460.0,105450.0,0.00202992]
[1747586659238,0.45485108,105460.0,105450.0,0.00202992]
[1747586659437,0.51625108,105460.0,105450.0,0.00202992]
[1747586660129,0.36183684,105460.0,105450.0,0.00202992]
[1747586660341,0.51625108,105460.0,105450.0,0.00202992]
[1747586664291,0.71109108,105460.0,105450.0,0.00202992]
[1747586664493,0.86550532,105460.0,105450.0,0.00202992]
[1747586665148,0.55667684,105460.0,105450.0,0.00202992]
[1747586665375,0.86550532,105460.0,105450.0,0.00202992]
[1747586665589,0.88004617,105460.0,105450.0,0.00202992]
[1747586667734,0.72563193,105460.0,105450.0,0.00202992]
[1747586668614,0.52647684,105460.0,105450.0,0.00202992]
[1747586668846,0.49527684,105460.0,105450.0,0.00202992]
[1747586669061,0.30043684,105460.0,105450.0,0.00202992]
[1747586669690,0.30043684,105460.0,105450.0,0.06462992]
[1747586671706,0.30043684,105460.0,105450.0,0.03362992]
[1747586671923,0.30043684,105460.0,105450.0,0.04009291]
[1747586673103,0.20312744,105460.0,105450.0,0.04009291]
[1747586673322,0.20312744,105460.0,105450.0,0.07109291]
[1747586673740,0.20312744,105460.0,105450.0,0.08018458]
[1747586681410,0.91699135,105460.0,105450.0,0.01112159]
[1747586681650,0.95737711,105460.0,105450.0,0.01112159]
[1747586682066,1.15201711,105460.0,105450.0,0.01112159]
[1747586682763,1.15201711,105460.0,105450.0,0.00202992]
[1747586683323,1.07594617,105460.0,105450.0,0.00202992]
[1747586684957,0.51755108,105460.0,105450.0,0.00202992]
[1747586685170,0.71215108,105460.0,105450.0,0.00202992]
[1747586685419,0.51755108,105460.0,105450.0,0.00202992]
[1747586685628,0.21813216,105440.0,105430.0,0.07108496]
[1747586685800,0.21813216,105440.0,105430.0,0.0616]
[1747586686567,0.21812692,105450.0,105440.0,0.0616]
[1747586686773,0.21812782,105450.0,105440.0,0.06207277]
[1747586687549,0.18968133,105440.0,105430.0,0.4253321]
[1747586687757,0.22761613,105440.0,105430.0,0.20717844]
[1747586687975,0.21813198,105440.0,105430.0,0.21666331]
[1747586688167,0.21813198,105440.0,105430.0,0.21566331]
[1747586688607,0.21813198,105440.0,105430.0,0.2156634]
[1747586688947,0.21813198,105440.0,105430.0,0.23423596]
[1747586689353,0.21813198,105440.0,105430.0,0.23623596]
[1747586689562,0.20864828,105440.0,105430.0,0.42593528]
[1747586689758,0.20864828,105440.0,105430.0,0.43541997]
[1747586690207,0.21813189,105440.0,105430.0,0.42593528]
[1747586690402,0.21813189,105440.0,105430.0,0.43542006]
[1747586690614,0.22761568,105440.0,105430.0,0.48913528]
[1747586690939,0.22761559,105440.0,105430.0,0.47779684]
[1747586691148,0.21813189,105440.0,105430.0,0.47779684]
[1747586691362,0.21813189,105440.0,105430.0,0.48728162]
[1747586691821,0.00047277,105450.0,105440.0,0.548649]
[1747586692044,0.00047277,105450.0,105440.0,0.91316183]
[1747586692262,0.00047277,105450.0,105440.0,0.9366807]
[1747586693733,0.00047277,105450.0,105440.0,0.95180102]
[1747586694913,0.00047277,105450.0,105440.0,1.36380102]
[1747586695121,0.00047277,105450.0,105440.0,1.36480102]
[1747586695539,0.00047277,105450.0,105440.0,1.36580102]
[1747586697291,0.00047277,105450.0,105440.0,1.39424402]
[1747586697722,0.00051277,105450.0,105440.0,1.39424402]
[1747586703306,0.00051277,105450.0,105440.0,1.19972402]
[1747586703513,0.00051277,105450.0,105440.0,1.36564102]
[1747586703947,0.00051277,105450.0,105440.0,1.56008102]
[1747586704385,0.00051277,105450.0,105440.0,1.14808102]
[1747586704824,0.00051277,105450.0,105440.0,1.14804102]
[1747586708405,0.00051277,105450.0,105440.0,1.14800102]
[1747586709191,0.00051277,105450.0,105440.0,0.75928102]
[1747586709490,0.00051277,105450.0,105440.0,1.14800102]
[1747586710197,0.00051277,105450.0,105440.0,1.56000102]
[1747586711290,0.00051277,105450.0,105440.0,1.55996102]
[1747586711541,0.00051277,105450.0,105440.0,1.17128102]
[1747586711743,0.00051277,105450.0,105440.0,1.55996102]
[1747586713307,0.03301277,105450.0,105440.0,0.96252102]
[1747586713514,0.06601277,105450.0,105440.0,0.73032984]
[1747586713727,0.06601277,105450.0,105440.0,1.07032984]
[1747586713928,0.06601277,105450.0,105440.0,0.73032984]
[1747586714127,0.06601277,105450.0,105440.0,0.34164984]
[1747586714384,0.06601277,105450.0,105440.0,0.87608984]
[1747586714599,0.00051277,105450.0,105440.0,0.87608984]
[1747586715018,0.00051277,105450.0,105440.0,0.68164984]
[1747586715228,0.00051277,105450.0,105440.0,1.07028984]
[1747586715448,0.06331277,105450.0,105440.0,0.68164984]
[1747586715657,0.07279512,105450.0,105440.0,1.07028984]
[1747586715889,0.07279512,105450.0,105440.0,0.87608984]
[1747586716307,0.06331277,105450.0,105440.0,0.87608984]
[1747586716523,0.28142433,105450.0,105440.0,0.85332757]
[1747586716741,0.29090695,105450.0,105440.0,0.67785506]
[1747586716989,0.28142406,105450.0,105440.0,0.88177867]
[1747586717202,0.29090713,105450.0,105440.0,0.21685287]
[1747586717406,0.28142514,105450.0,105440.0,0.21685287]
[1747586717633,0.27194234,105450.0,105440.0,0.21685287]
[1747586718517,0.60442533,105450.0,105440.0,0.02241287]
[1747586718735,0.88919712,105450.0,105440.0,0.02241287]
[1747586719230,0.88919712,105450.0,105440.0,0.02141287]
[1747586719448,0.88919712,105450.0,105440.0,0.02041287]
[1747586719876,0.57795259,105450.0,105440.0,0.02041287]
[1747586720093,0.57995259,105450.0,105440.0,0.02041287]
[1747586720321,0.26974864,105440.0,105430.0,0.18969725]
[1747586720526,0.0611,105430.0,105420.0,0.42209751]
[1747586720942,0.07058343,105440.0,105430.0,0.20866879]
[1747586721162,0.22262469,105450.0,105440.0,0.1991653]
[1747586721379,0.22262469,105450.0,105440.0,0.41257288]
[1747586721380,0.28372388,105450.0,105440.0,0.41257288]
[1747586721584,0.30268993,105450.0,105440.0,0.41257297]
[1747586721796,0.29320686,105450.0,105440.0,0.42205658]
[1747586721998,0.29320686,105450.0,105440.0,0.42205667]
[1747586722250,0.28920686,105450.0,105440.0,0.43154028]
[1747586722463,0.28920686,105450.0,105440.0,0.43153974]
[1747586722464,0.07109512,105450.0,105440.0,0.43153974]
[1747586722667,0.09006027,105450.0,105440.0,0.43153974]
[1747586722887,0.06161277,105450.0,105440.0,0.42653974]
[1747586723109,0.27024135,105450.0,105440.0,0.42653983]
[1747586723369,0.29120722,105450.0,105440.0,0.4025727]
[1747586723588,0.29120704,105450.0,105440.0,0.41205631]
[1747586723795,0.28172415,105450.0,105440.0,0.43059948]
[1747586724017,0.28372415,105450.0,105440.0,0.4161156]
[1747586724482,0.28372415,105450.0,105440.0,0.40663208]
[1747586724711,0.29320713,105450.0,105440.0,0.39714847]
[1747586724929,0.27424216,105450.0,105440.0,0.54349965]
[1747586725155,0.27424216,105450.0,105440.0,0.34905965]
[1747586725423,0.27424216,105450.0,105440.0,0.00905965]
[1747586726103,0.27424216,105450.0,105440.0,0.00871317]
[1747586726540,0.37155156,105450.0,105440.0,0.00871317]
[1747586726762,0.00948433,105430.0,105420.0,0.56765796]
[1747586726980,0.00948433,105430.0,105420.0,0.56765787]
[1747586727198,0.19918365,105430.0,105420.0,0.55817264]
[1747586727418,0.19918365,105430.0,105420.0,0.56765787]
[1747586727634,0.01896875,105430.0,105420.0,0.56765787]
[1747586728072,0.0309,105430.0,105420.0,0.55817174]
[1747586728288,0.0309,105430.0,105420.0,0.75229174]
[1747586728508,0.07058433,105430.0,105420.0,0.75229174]
[1747586728731,0.07058433,105430.0,105420.0,0.75329174]
[1747586728965,0.08006857,105430.0,105420.0,0.75329174]
[1747586729133,0.08006857,105430.0,105420.0,0.75429174]
[1747586729606,0.26276458,105440.0,105430.0,0.1991841]
[1747586729863,0.07308325,105440.0,105430.0,0.20866861]
[1747586730022,0.0636,105440.0,105430.0,0.21815294]
[1747586730169,0.07308343,105440.0,105430.0,0.21815294]
[1747586730875,0.0636,105440.0,105430.0,0.21815294]
[1747586731065,0.30119029,105450.0,105440.0,0.20864918]
[1747586731245,0.28222406,105450.0,105440.0,0.21813279]
[1747586731451,0.28222406,105450.0,105440.0,0.22761631]
[1747586731663,0.22810704,105450.0,105440.0,0.22761649]
[1747586732068,0.00051277,105450.0,105440.0,0.43121992]
[1747586732486,0.00251277,105450.0,105440.0,0.77121992]
[1747586732911,0.00451277,105450.0,105440.0,0.77121992]
[1747586733329,0.00451277,105450.0,105440.0,0.93232932]
[1747586733456,0.00451277,105450.0,105440.0,1.34180932]
[1747586734598,0.00251277,105450.0,105440.0,1.34180932]
[1747586734811,0.00251277,105450.0,105440.0,1.27900932]
[1747586735014,0.00051277,105450.0,105440.0,1.08488932]
[1747586735379,0.00051277,105450.0,105440.0,1.27900932]
[1747586735579,0.00051277,105450.0,105440.0,1.28000932]
[1747586736625,0.00051277,105450.0,105440.0,1.2913345]
[1747586736883,0.00051277,105450.0,105440.0,1.3243345]
[1747586737104,0.00051277,105450.0,105440.0,1.5500345]
[1747586737524,0.00051277,105450.0,105440.0,1.56451477]
[1747586738552,0.00051277,105450.0,105440.0,1.57357283]
[1747586740183,0.00051277,105450.0,105440.0,1.57736797]
[1747586742423,0.00051277,105450.0,105440.0,1.57732797]
[1747586742877,0.00051277,105450.0,105440.0,1.57724797]
[1747586743233,0.00051277,105450.0,105440.0,1.98924797]
[1747586744719,0.00051277,105450.0,105440.0,2.09925497]
[1747586744956,0.00051277,105450.0,105440.0,2.11379582]
[1747586747730,0.00051277,105450.0,105440.0,1.92446797]
[1747586747957,0.00051277,105450.0,105440.0,1.53650797]
[1747586748179,0.00051277,105450.0,105440.0,1.92446797]
[1747586748912,0.00051277,105450.0,105440.0,1.95676797]
[1747586749134,0.00051277,105450.0,105440.0,1.98846797]
[1747586749344,0.00051277,105450.0,105440.0,1.60050797]
[1747586749586,0.00051277,105450.0,105440.0,1.98842797]
[1747586750685,0.00051277,105450.0,105440.0,1.76288797]
[1747586750936,0.00051277,105450.0,105440.0,1.95672797]
[1747586752120,0.00051277,105450.0,105440.0,1.92442797]
[1747586753321,0.00051277,105450.0,105440.0,1.53650797]
[1747586753524,0.00051277,105450.0,105440.0,1.92438797]
[1747586756214,0.06561277,105450.0,105440.0,1.92438797]
[1747586756596,0.06561277,105450.0,105440.0,1.73058797]
[1747586756960,0.06561277,105450.0,105440.0,1.71573879]
[1747586757095,0.06561277,105450.0,105440.0,1.90542012]
[1747586757763,0.06561277,105450.0,105440.0,1.92438797]
[1747586758167,0.06561277,105450.0,105440.0,1.51238797]
[1747586759768,0.06561277,105450.0,105440.0,1.50860425]
[1747586761271,0.06561277,105450.0,105440.0,1.50856425]
[1747586762067,0.06561277,105450.0,105440.0,1.31484425]
[1747586762276,0.25527611,105450.0,105440.0,1.11128082]
[1747586762525,0.06561277,105450.0,105440.0,1.49376398]
[1747586765037,0.07509521,105450.0,105440.0,1.49376398]
[1747586765270,0.06561277,105450.0,105440.0,1.49376398]
[1747586765485,0.06561277,105450.0,105440.0,1.10628398]
[1747586765695,0.06561277,105450.0,105440.0,1.49376398]
[1747586765915,0.07509521,105450.0,105440.0,1.49376398]
[1747586766123,0.06561277,105450.0,105440.0,1.49376398]
[1747586766341,0.07509521,105450.0,105440.0,1.30004398]
[1747586766546,0.07509521,105450.0,105440.0,1.49372398]
[1747586766942,0.07509521,105450.0,105440.0,1.38693097]
[1747586767325,0.06561277,105450.0,105440.0,1.38693097]
[1747586770444,0.06561277,105450.0,105440.0,1.19325097]
[1747586770657,0.27424108,105450.0,105440.0,1.18376754]
[1747586770866,0.26475846,105450.0,105440.0,1.20273449]
[1747586771085,0.28372361,105450.0,105440.0,1.16479969]
[1747586771306,0.28372361,105450.0,105440.0,1.18376727]
[1747586771614,0.28372361,105450.0,105440.0,1.19325079]
[1747586772040,0.2742409,105450.0,105440.0,1.19325079]
[1747586772252,0.28372352,105450.0,105440.0,1.20273422]
[1747586772971,0.28372352,105450.0,105440.0,1.19325079]
[1747586773321,0.06561277,105450.0,105440.0,1.20273422]
[1747586773742,0.00051277,105450.0,105440.0,1.30004362]
[1747586774848,0.00051277,105450.0,105440.0,1.34474507]
[1747586775067,0.00051277,105450.0,105440.0,1.37694507]
[1747586775507,0.00051277,105450.0,105440.0,1.34474507]
[1747586775963,0.00051277,105450.0,105440.0,1.31434507]
[1747586776640,0.00051277,105450.0,105440.0,1.34474507]
[1747586776843,0.00051277,105450.0,105440.0,1.37694507]
[1747586778158,0.00051277,105450.0,105440.0,1.40310505]
[1747586778302,0.00051277,105450.0,105440.0,1.4063093]
[1747586779798,0.00051277,105450.0,105440.0,1.5999493]
[1747586782283,0.00051277,105450.0,105440.0,2.0119493]
[1747586784461,0.00051277,105450.0,105440.0,2.0118293]
[1747586787884,0.0832012,105470.0,105460.0,0.55809106]
[1747586788086,8.725e-05,105470.0,105460.0,1.04236046]
[1747586788502,8.725e-05,105470.0,105460.0,1.48646046]
[1747586788906,8.725e-05,105470.0,105460.0,1.51706046]
[1747586789590,0.00208725,105470.0,105460.0,1.51706046]
[1747586790206,0.00208725,105470.0,105460.0,1.52611852]
[1747586790442,8.725e-05,105470.0,105460.0,1.52611852]
[1747586795000,8.725e-05,105470.0,105460.0,1.49551852]
[1747586796425,8.725e-05,105470.0,105460.0,1.52741852]
[1747586797038,8.725e-05,105470.0,105460.0,1.54195937]
[1747586797222,8.725e-05,105470.0,105460.0,1.65200637]
[1747586797865,8.725e-05,105470.0,105460.0,1.65300637]
[1747586798668,8.725e-05,105470.0,105460.0,1.54295937]
[1747586799285,8.725e-05,105470.0,105460.0,1.54383937]
[1747586799451,8.725e-05,105470.0,105460.0,1.54283937]
[1747586799685,8.725e-05,105470.0,105460.0,1.54183937]
[1747586799876,8.725e-05,105470.0,105460.0,1.54483937]
[1747586800008,8.725e-05,105470.0,105460.0,1.54779937]
[1747586800207,8.725e-05,105470.0,105460.0,1.65269637]
[1747586800678,4e-05,105480.0,105470.0,0.55807038]
[1747586800904,0.06494,105480.0,105470.0,0.65537978]
[1747586801590,0.06494,105480.0,105470.0,0.65873957]
[1747586801796,0.06494,105480.0,105470.0,0.68291089]
[1747586802011,0.03274,105480.0,105470.0,0.68291089]
[1747586802187,4e-05,105480.0,105470.0,0.68291089]
[1747586802403,4e-05,105480.0,105470.0,0.68391089]
[1747586802851,4e-05,105480.0,105470.0,0.68491089]
[1747586804434,4e-05,105480.0,105470.0,0.71541089]
[1747586805553,0.06489401,105490.0,105480.0,0.21804973]
[1747586805769,0.06494124,105490.0,105480.0,0.70207913]
[1747586806195,0.06494124,105490.0,105480.0,0.71113719]
[1747586806848,0.03274723,105490.0,105480.0,0.71113719]
[1747586807023,4.723e-05,105490.0,105480.0,0.71113719]
[1747586807232,0.03254723,105490.0,105480.0,0.71113719]
[1747586807867,0.03254723,105490.0,105480.0,1.12045719]
[1747586808078,0.03254723,105490.0,105480.0,1.13178925]
[1747586808588,0.06344723,105490.0,105480.0,1.13178925]
[1747586808741,0.06344723,105490.0,105480.0,0.93850925]
[1747586808936,0.06344723,105490.0,105480.0,1.13174925]
[1747586809567,0.06344723,105490.0,105480.0,1.13338439]
[1747586809998,0.07292617,105490.0,105480.0,1.13338439]
[1747586810149,0.06344723,105490.0,105480.0,0.74670439]
[1747586810373,0.07292608,105490.0,105480.0,1.13334439]
[1747586810579,0.08240511,105490.0,105480.0,1.13334439]
[1747586810789,0.07292608,105490.0,105480.0,1.13334439]
[1747586812224,0.06344723,105490.0,105480.0,1.13334439]
[1747586812833,0.07292617,105490.0,105480.0,1.13334439]
[1747586813033,0.06344723,105490.0,105480.0,1.13334439]
[1747586813238,0.06344723,105490.0,105480.0,1.1589887]
[1747586813474,0.06344723,105490.0,105480.0,1.13334439]
[1747586814096,0.06344723,105490.0,105480.0,1.10834439]
[1747586815158,0.03254723,105490.0,105480.0,1.10834439]
[1747586815414,4.723e-05,105490.0,105480.0,1.10834439]
[1747586816046,4.723e-05,105490.0,105480.0,1.51264439]
[1747586816245,4.723e-05,105490.0,105480.0,2.04923224]
[1747586816459,6e-05,105510.0,105500.0,0.59030838]
[1747586816684,6e-05,105510.0,105500.0,1.23044563]
[1747586816922,6e-05,105510.0,105500.0,1.64244563]
[1747586817141,6e-05,105510.0,105500.0,1.26043778]
[1747586817360,6e-05,105510.0,105500.0,1.59590478]
[1747586818101,6e-05,105510.0,105500.0,1.62790478]
[1747586818515,6e-05,105510.0,105500.0,1.64096284]
[1747586818717,6e-05,105510.0,105500.0,1.63996284]
[1747586818928,6e-05,105510.0,105500.0,1.60796284]
[1747586819127,6e-05,105510.0,105500.0,1.61096284]
[1747586819484,6e-05,105510.0,105500.0,1.57866284]
[1747586819989,6e-05,105510.0,105500.0,1.46861584]
[1747586820210,6e-05,105510.0,105500.0,1.46849584]
[1747586820694,6e-05,105510.0,105500.0,1.57854284]
[1747586821225,6e-05,105510.0,105500.0,1.16654284]
[1747586821632,6e-05,105510.0,105500.0,1.18094738]
[1747586822062,6e-05,105510.0,105500.0,1.59294738]
[1747586822469,0.06356,105510.0,105500.0,1.09678038]
[1747586822734,0.06356,105510.0,105500.0,1.48355146]
[1747586822952,6e-05,105510.0,105500.0,1.09743146]
[1747586823144,6e-05,105510.0,105500.0,1.48351146]
[1747586824425,6e-05,105510.0,105500.0,1.56005231]
[1747586824631,0.00720863,105520.0,105510.0,0.63452857]
[1747586824807,0.00720863,105520.0,105510.0,0.84188497]
[1747586825044,0.00720863,105520.0,105510.0,0.84255875]
[1747586825881,0.00720863,105520.0,105510.0,0.85161681]
[1747586826305,0.00720863,105520.0,105510.0,0.85561681]
[1747586826511,0.00720863,105520.0,105510.0,0.85961681]
[1747586827344,0.00720863,105520.0,105510.0,0.88295261]
[1747586827518,0.00724863,105520.0,105510.0,0.88295261]
[1747586828567,0.00724863,105520.0,105510.0,1.29495261]
[1747586829888,0.00724863,105520.0,105510.0,1.31600763]
[1747586832654,0.0159653,105540.0,105530.0,0.63758724]
[1747586832855,0.01610705,105540.0,105530.0,1.98962079]
[1747586833073,0.01610705,105540.0,105530.0,2.13506013]
[1747586834113,0.01610705,105540.0,105530.0,1.71934898]
[1747586834316,0.01610705,105540.0,105530.0,2.02223598]
[1747586834564,0.01610705,105540.0,105530.0,2.10222013]
[1747586834761,0.01610705,105540.0,105530.0,2.07941511]
[1747586835736,0.01610705,105540.0,105530.0,1.91214898]
[1747586836141,0.01610705,105540.0,105530.0,1.62506986]
[1747586836364,0.01610705,105540.0,105530.0,1.90082286]
[1747586836603,0.01610705,105540.0,105530.0,2.03578899]
[1747586836922,0.01610705,105540.0,105530.0,2.04524725]
[1747586837181,0.01610705,105540.0,105530.0,2.02294026]
[1747586839161,0.01610705,105540.0,105530.0,1.91289326]
[1747586839360,0.01610705,105540.0,105530.0,1.94131126]
[1747586839787,0.01610705,105540.0,105530.0,1.97401126]
[1747586840166,0.00261128,105540.0,105530.0,2.08405826]
[1747586840379,0.00261128,105540.0,105530.0,2.13967739]
[1747586841033,0.0635,105580.0,105570.0,0.52944775]
[1747586841247,0.1035,105590.0,105580.0,0.5578432]
[1747586841667,0.10397262,105590.0,105580.0,0.66421066]
[1747586841897,0.04047262,105590.0,105580.0,0.66421066]
[1747586842112,0.04047262,105590.0,105580.0,0.83652266]
[1747586842338,0.04047262,105590.0,105580.0,0.86492666]
[1747586842546,0.04047262,105590.0,105580.0,0.87492666]
[1747586842763,0.04047262,105590.0,105580.0,0.85990251]
[1747586842963,0.04047262,105590.0,105580.0,0.83134537]
[1747586843179,0.04047262,105590.0,105580.0,1.02406537]
[1747586843354,0.04247262,105590.0,105580.0,1.02406537]
[1747586843596,0.04047262,105590.0,105580.0,1.02406537]
[1747586844033,0.04047262,105590.0,105580.0,0.72331428]
[1747586844220,0.10477262,105590.0,105580.0,1.09441343]
[1747586844450,0.10477262,105590.0,105580.0,1.09541343]
[1747586844715,0.10477262,105590.0,105580.0,1.06700943]
[1747586845158,0.10477262,105590.0,105580.0,0.68136943]
[1747586845374,0.10477262,105590.0,105580.0,1.06700943]
[1747586846724,0.10477262,105590.0,105580.0,0.68136943]
[1747586846932,0.10477262,105590.0,105580.0,0.88522424]
[1747586847148,0.10481262,105590.0,105580.0,0.69262424]
[1747586847334,0.10481262,105590.0,105580.0,1.07786424]
[1747586847991,0.07331262,105590.0,105580.0,1.07786424]
[1747586848243,0.07331262,105590.0,105580.0,0.69262424]
[1747586848469,0.07331262,105590.0,105580.0,1.07786424]
[1747586849053,0.07331262,105590.0,105580.0,0.69262424]
[1747586849257,0.07331262,105590.0,105580.0,1.07782424]
[1747586849458,0.04051262,105590.0,105580.0,1.07782424]
[1747586849882,0.10551262,105590.0,105580.0,1.07782424]
[1747586850255,0.10551262,105590.0,105580.0,0.69262424]
[1747586850460,0.10551262,105590.0,105580.0,1.07782424]
[1747586851101,0.10551262,105590.0,105580.0,0.88522424]
[1747586851326,0.10551262,105590.0,105580.0,1.48035338]
[1747586851535,0.31386423,105590.0,105580.0,1.30669546]
[1747586851946,0.31386423,105590.0,105580.0,1.1046246]
[1747586852259,0.31386423,105590.0,105580.0,1.31616641]
[1747586852485,0.3328046,105590.0,105580.0,0.86161061]
[1747586852695,0.30439427,105590.0,105580.0,0.8805526]
[1747586852906,0.12445236,105590.0,105580.0,0.8805526]
[1747586853116,0.1149824,105590.0,105580.0,0.86929779]
[1747586853335,0.10551262,105590.0,105580.0,0.86929779]
[1747586853965,0.10551262,105590.0,105580.0,0.67669779]
[1747586854166,0.10551262,105590.0,105580.0,1.06185779]
[1747586856200,0.10551262,105590.0,105580.0,1.0731126]
[1747586856893,0.10551262,105590.0,105580.0,1.08720296]
[1747586857355,0.11498249,105590.0,105580.0,1.49920296]
[1747586857571,0.31386504,105590.0,105580.0,0.88672854]
[1747586857797,0.32333563,105590.0,105580.0,1.08879994]
[1747586858026,0.30439436,105590.0,105580.0,1.2971721]
[1747586858285,0.3138645,105590.0,105580.0,0.95717228]
[1747586858528,0.32333482,105590.0,105580.0,0.95717228]
[1747586858773,0.32333482,105590.0,105580.0,0.44786279]
[1747586860002,0.32333482,105590.0,105580.0,0.43660798]
[1747586860437,0.32333482,105590.0,105580.0,0.42713685]
[1747586860653,0.3138645,105590.0,105580.0,0.43660807]
[1747586860914,0.3138645,105590.0,105580.0,0.4460792]
[1747586860915,0.32333482,105590.0,105580.0,0.4460792]
[1747586861331,0.3138645,105590.0,105580.0,0.4460792]
[1747586861900,0.32333482,105590.0,105580.0,0.4460792]
[1747586862578,0.33280532,105590.0,105580.0,0.40357518]
[1747586862765,0.32333482,105590.0,105580.0,0.41304631]
[1747586862960,0.32333482,105590.0,105580.0,0.40357518]
[1747586863168,0.32333482,105590.0,105580.0,0.4130464]
[1747586863630,0.32333482,105590.0,105580.0,0.40357518]
[1747586863864,0.31386522,105590.0,105580.0,0.20467397]
[1747586865709,0.54903881,105590.0,105580.0,0.01107397]
[1747586865891,0.53956849,105590.0,105580.0,0.20367397]
[1747586866137,0.53956849,105590.0,105580.0,0.20267397]
[1747586866366,0.53956849,105590.0,105580.0,0.01007397]
[1747586866578,0.54056849,105590.0,105580.0,0.01007397]
[1747586866809,0.63787789,105590.0,105580.0,0.01007397]
[1747586867028,0.97787789,105590.0,105580.0,0.01007397]
[1747586867252,0.97687789,105590.0,105580.0,0.01007397]
[1747586867681,0.97887789,105590.0,105580.0,0.01007397]
[1747586868200,0.97887789,105590.0,105580.0,0.00101591]
[1747586869101,0.27379188,105570.0,105560.0,0.01125481]
[1747586869306,0.60627487,105570.0,105560.0,0.01125481]
[1747586869736,0.94627487,105570.0,105560.0,0.01125481]
[1747586869956,1.18144846,105570.0,105560.0,0.01125481]
[1747586870165,1.19598931,105570.0,105560.0,0.01125481]
[1747586870807,1.19798931,105570.0,105560.0,0.01125481]
[1747586871076,0.09382416,105540.0,105530.0,0.22237863]
[1747586871293,0.28332577,105540.0,105530.0,0.23185451]
[1747586871481,0.28332577,105540.0,105530.0,0.43084986]
[1747586871633,0.28332577,105540.0,105530.0,0.43084977]
[1747586872031,0.28332577,105540.0,105530.0,0.42137407]
[1747586872235,0.28332577,105540.0,105530.0,0.0392546]
[1747586872433,0.28332577,105540.0,105530.0,0.2318946]
[1747586873078,0.28332577,105540.0,105530.0,0.2358946]
[1747586873314,0.28332577,105540.0,105530.0,0.22463979]
[1747586873498,0.28332577,105540.0,105530.0,0.21516382]
[1747586873897,0.0625,105550.0,105540.0,0.21792595]
[1747586874136,0.00947337,105550.0,105540.0,0.2274004]
[1747586874361,0.00947427,105540.0,105530.0,0.71855915]
[1747586874585,0.00947427,105540.0,105530.0,0.70950932]
[1747586874781,0.27093066,105550.0,105540.0,0.22740085]
[1747586874926,0.08144692,105550.0,105540.0,0.22740085]
[1747586875192,0.1989388,105560.0,105550.0,0.21789143]
[1747586875193,0.0625,105560.0,105550.0,0.21789143]
[1747586875396,0.08144539,105560.0,105550.0,0.21789143]
[1747586875599,0.08144539,105560.0,105550.0,0.20841788]
[1747586875785,0.08144539,105560.0,105550.0,0.21789152]
[1747586876184,0.28038464,105560.0,105550.0,0.01850231]
[1747586876445,0.28138464,105560.0,105550.0,0.00902813]
[1747586876598,0.28338464,105560.0,105550.0,0.00902813]
[1747586877007,0.28338464,105560.0,105550.0,0.01850231]
[1747586877819,0.28338464,105560.0,105550.0,0.21745996]
[1747586878239,0.28338464,105560.0,105550.0,0.20843183]
[1747586878446,0.29285792,105560.0,105550.0,0.19895783]
[1747586878673,0.29285792,105560.0,105550.0,0.20843192]
[1747586879644,0.27391118,105560.0,105550.0,0.22737947]
[1747586879794,0.07497256,105560.0,105550.0,0.23685302]
[1747586880004,0.003,105560.0,105550.0,0.23685302]
[1747586880200,0.02194512,105560.0,105550.0,0.23685302]
[1747586880401,0.02194503,105560.0,105550.0,0.23685302]
[1747586880600,0.23035657,105560.0,105550.0,0.23640416]
[1747586880855,0.29325648,105560.0,105550.0,0.2458778]
[1747586881410,0.30272958,105560.0,105550.0,0.23640425]
[1747586881658,0.30272958,105560.0,105550.0,0.0090246]
[1747586881659,0.27431208,105560.0,105550.0,0.0090246]
[1747586882202,0.01894701,105550.0,105540.0,0.85722935]
[1747586882408,0.01894692,105550.0,105540.0,0.85722935]
[1747586882823,0.2179043,105550.0,105540.0,0.8477558]
[1747586883031,0.2179043,105550.0,105540.0,0.85723043]
[1747586883255,0.2179043,105550.0,105540.0,0.86670497]
[1747586883649,0.2179043,105550.0,105540.0,0.86625572]
[1747586883852,0.2179043,105550.0,105540.0,0.87573026]
[1747586884077,0.2179043,105550.0,105540.0,0.74999697]
[1747586884078,0.2896783,105550.0,105540.0,0.74999697]
[1747586884457,0.50590497,105550.0,105540.0,0.54154529]
[1747586884710,0.27073138,105550.0,105540.0,0.34902529]
[1747586884845,0.27073138,105550.0,105540.0,0.54154529]
[1747586885270,0.27073138,105550.0,105540.0,0.75947106]
[1747586885271,0.07177346,105550.0,105540.0,0.75947106]
[1747586885482,0.28020484,105550.0,105540.0,0.7499967]
[1747586885695,0.28020475,105550.0,105540.0,0.75947142]
[1747586886324,0.28020475,105550.0,105540.0,0.7499967]
[1747586886542,0.28020475,105550.0,105540.0,0.75947142]
[1747586886762,0.28967875,105550.0,105540.0,0.7499967]
[1747586886970,0.08124719,105550.0,105540.0,0.76894569]
[1747586887182,0.04177265,105560.0,105550.0,0.20843174]
[1747586887401,0.07177256,105560.0,105550.0,0.22737911]
[1747586887613,0.28018392,105560.0,105550.0,0.21790556]
[1747586887829,0.0623,105560.0,105550.0,0.22737911]
[1747586888276,0.04047256,105560.0,105550.0,0.22737911]
[1747586888486,0.04047247,105560.0,105550.0,0.2364044]
[1747586888701,0.05194521,105560.0,105550.0,0.2364044]
[1747586889168,0.24141091,105560.0,105550.0,0.22693085]
[1747586889368,0.28408383,105560.0,105550.0,0.23640458]
[1747586889663,0.27461091,105560.0,105550.0,0.23640458]
[1747586889839,0.28408392,105560.0,105550.0,0.22693085]
[1747586890055,0.28408392,105560.0,105550.0,0.22693076]
[1747586890255,0.27461091,105560.0,105550.0,0.2364044]
[1747586890740,0.27461091,105560.0,105550.0,0.24587795]
[1747586890741,0.08514512,105560.0,105550.0,0.24587795]
[1747586890957,0.003,105560.0,105550.0,0.68318735]
[1747586891169,0.003,105560.0,105550.0,0.71468735]
[1747586891409,0.003,105560.0,105550.0,0.69533589]
[1747586891619,0.003,105560.0,105550.0,0.68318735]